bitfinex/quotes_BTCUSD_20250124
["timestamp","ask_amount","ask_price","bid_price","bid_amount"]
[1737730806415,0.23911029,105810.0,105800.0,0.0767]
[1737730806824,0.23911029,105810.0,105800.0,0.218476]
[1737730807030,0.23911029,105810.0,105800.0,0.0767]
[1737730807237,0.23960168,105810.0,105800.0,0.0767]
[1737730810460,0.09783868,105810.0,105800.0,0.218476]
[1737730811126,0.00049139,105810.0,105800.0,0.228476]
[1737730811349,0.23960168,105810.0,105800.0,0.0767]
[1737730811591,0.38960168,105810.0,105800.0,0.0767]
[1737730813106,1.88960168,105810.0,105800.0,0.0767]
[1737730814051,0.24783868,105810.0,105800.0,0.218476]
[1737730814276,0.00049139,105810.0,105800.0,0.228476]
[1737730814486,0.00049139,105810.0,105800.0,0.248476]
[1737730815540,0.330631,105860.0,105840.0,0.519632]
[1737730815763,0.09734729,105850.0,105840.0,0.141714]
[1737730815980,0.23905629,105850.0,105840.0,0.141714]
[1737730816194,0.23905629,105850.0,105830.0,0.1274]
[1737730816195,0.141723,105840.0,105830.0,0.1274]
[1737730816401,0.23907029,105840.0,105830.0,0.1274]
[1737730816620,0.23907029,105840.0,105830.0,0.0795]
[1737730816830,0.519722,105830.0,105810.0,0.655367]
[1737730817055,0.23908929,105830.0,105820.0,0.14175]
[1737730817261,0.09734729,105830.0,105820.0,0.14175]
[1737730817677,0.15,105840.0,105820.0,0.14175]
[1737730817887,0.23906729,105850.0,105840.0,0.141723]
[1737730818099,0.09734729,105850.0,105840.0,0.141723]
[1737730818536,0.09734729,105850.0,105830.0,0.419296]
[1737730818750,0.23907029,105840.0,105830.0,0.220336]
[1737730818964,0.09734729,105840.0,105830.0,0.220336]
[1737730819628,0.23907029,105840.0,105830.0,0.220336]
[1737730819837,0.09734729,105840.0,105830.0,0.220336]
[1737730821337,0.09734729,105840.0,105830.0,0.320336]
[1737730821957,1.50029821,105850.0,105840.0,0.141723]
[1737730821958,0.00029821,105850.0,105840.0,0.141723]
[1737730822188,0.0976455,105850.0,105840.0,0.189723]
[1737730823862,0.2393545,105850.0,105840.0,0.189723]
[1737730825327,1.7393545,105850.0,105840.0,0.048]
[1737730825548,0.2393545,105850.0,105840.0,0.189723]
[1737730826164,1.7393545,105850.0,105840.0,0.048]
[1737730827118,0.141723,105840.0,105830.0,0.1786]
[1737730827354,0.23907029,105840.0,105830.0,0.320336]
[1737730828017,0.23907029,105840.0,105830.0,0.1786]
[1737730828765,0.38907029,105840.0,105830.0,0.1]
[1737730829789,0.15,105830.0,105810.0,0.0753]
[1737730829999,0.23909729,105820.0,105810.0,0.0753]
[1737730830399,0.141763,105810.0,105800.0,0.0469]
[1737730830600,0.23911029,105810.0,105800.0,0.0469]
[1737730830803,0.38911029,105810.0,105800.0,0.0469]
[1737730831051,0.38911029,105810.0,105800.0,0.188676]
[1737730831240,0.38920313,105810.0,105800.0,0.188676]
[1737730832337,0.09744013,105810.0,105800.0,0.188676]
[1737730832532,9.284e-05,105810.0,105800.0,0.198676]
[1737730832734,9.284e-05,105810.0,105800.0,0.427676]
[1737730833026,9.284e-05,105810.0,105800.0,0.56816519]
[1737730833251,9.284e-05,105810.0,105800.0,0.4708179]
[1737730833427,9.284e-05,105810.0,105800.0,0.2678179]
[1737730833630,0.38920313,105810.0,105800.0,0.2260419]
[1737730833834,0.38920313,105810.0,105800.0,0.1001419]
[1737730834048,1.88920313,105810.0,105800.0,0.1001419]
[1737730834454,0.38920313,105810.0,105800.0,0.1001419]
[1737730834903,1.74744013,105810.0,105800.0,0.2419179]
[1737730835033,0.38920313,105810.0,105800.0,0.1001419]
[1737730835837,0.38920313,105810.0,105800.0,0.2419179]
[1737730836034,0.24744013,105810.0,105800.0,0.2419179]
[1737730836356,9.284e-05,105810.0,105800.0,0.3479179]
[1737730836696,9.284e-05,105810.0,105800.0,0.3935179]
[1737730836836,9.284e-05,105810.0,105800.0,0.3965179]
[1737730837045,9.284e-05,105810.0,105800.0,0.51386519]
[1737730838383,0.23920313,105810.0,105800.0,0.2217419]
[1737730839227,0.38920313,105810.0,105800.0,0.1001419]
[1737730840292,0.23920313,105810.0,105800.0,0.1001419]
[1737730840980,0.23920313,105810.0,105800.0,0.0001419]
[1737730841185,0.38920313,105810.0,105800.0,0.0001419]
[1737730841391,0.48655042,105810.0,105800.0,0.0001419]
[1737730841543,0.48735042,105810.0,105800.0,0.0001419]
[1737730841751,0.51035042,105810.0,105800.0,0.0001419]
[1737730841978,0.38920313,105810.0,105800.0,0.0001419]
[1737730843146,0.09744013,105810.0,105800.0,0.1419179]
[1737730843462,9.284e-05,105810.0,105800.0,0.1519179]
[1737730843671,9.284e-05,105810.0,105800.0,0.2308179]
[1737730843872,9.284e-05,105810.0,105800.0,0.2738179]
[1737730844251,9.284e-05,105810.0,105800.0,0.2408179]
[1737730844458,0.23920313,105810.0,105800.0,0.0790419]
[1737730844669,0.38950113,105810.0,105800.0,0.0790419]
[1737730844911,0.38950113,105810.0,105800.0,0.2208179]
[1737730845111,0.38950113,105810.0,105800.0,0.0790419]
[1737730845789,0.38950113,105810.0,105800.0,0.0001419]
[1737730846232,0.38950113,105810.0,105800.0,0.1001419]
[1737730847565,0.40137327,105810.0,105800.0,0.1001419]
[1737730848015,0.40217327,105810.0,105800.0,0.1001419]
[1737730849837,0.40217327,105810.0,105800.0,0.0623339]
[1737730850270,0.42100368,105810.0,105800.0,0.0623339]
[1737730851365,0.42020368,105810.0,105800.0,0.0623339]
[1737730851996,0.27020368,105810.0,105800.0,0.0623339]
[1737730852333,0.36755097,105810.0,105800.0,0.0623339]
[1737730852545,0.42020368,105810.0,105800.0,0.0623339]
[1737730853385,0.09773813,105810.0,105800.0,0.2141099]
[1737730853587,0.00039084,105810.0,105800.0,0.2141099]
[1737730853811,0.00039084,105810.0,105800.0,0.3637099]
[1737730854212,0.00039084,105810.0,105800.0,0.3867099]
[1737730854461,0.00029821,105850.0,105840.0,0.151723]
[1737730854870,0.2393545,105850.0,105840.0,0.141723]
[1737730855080,0.2393545,105850.0,105840.0,0.151723]
[1737730855289,0.0976455,105850.0,105840.0,0.151723]
[1737730855899,0.2393545,105850.0,105840.0,0.15187049]
[1737730856328,0.0976455,105850.0,105840.0,0.15187049]
[1737730856741,0.2393545,105850.0,105840.0,0.14187049]
[1737730856950,0.2393545,105850.0,105840.0,0.00014749]
[1737730857390,0.2393545,105850.0,105840.0,0.14187049]
[1737730857593,0.2393545,105850.0,105840.0,0.00014749]
[1737730857804,0.0976455,105850.0,105840.0,0.15187049]
[1737730858009,0.00029821,105850.0,105840.0,0.15187049]
[1737730858422,0.00029821,105850.0,105840.0,0.17187049]
[1737730858597,0.00029821,105850.0,105840.0,0.27281521]
[1737730858821,0.00029821,105850.0,105840.0,0.27187049]
[1737730862240,1.5118486,105890.0,105880.0,0.141669]
[1737730862444,1.73930171,105890.0,105880.0,0.141669]
[1737730862663,0.09764571,105890.0,105880.0,0.141669]
[1737730862876,0.00029842,105890.0,105880.0,0.4669135]
[1737730863173,0.00029842,105890.0,105880.0,0.465969]
[1737730863383,0.00029842,105890.0,105880.0,0.56331629]
[1737730863796,0.00029842,105890.0,105880.0,0.39331629]
[1737730864016,0.00029842,105890.0,105880.0,0.282969]
[1737730864222,0.00029842,105890.0,105880.0,0.272969]
[1737730864430,0.09764571,105890.0,105880.0,0.262969]
[1737730864631,0.00029842,105890.0,105880.0,0.295969]
[1737730865050,0.00029842,105890.0,105880.0,0.315969]
[1737730865281,0.00029821,105900.0,105890.0,0.261156]
[1737730865483,0.00044581,105900.0,105890.0,0.248156]
[1737730865685,0.00044581,105900.0,105890.0,0.271156]
[1737730866292,0.00044581,105900.0,105890.0,0.51850329]
[1737730866504,0.00044581,105900.0,105890.0,0.56580329]
[1737730867412,0.00044581,105900.0,105890.0,0.54580329]
[1737730867622,0.00044581,105900.0,105890.0,0.458456]
[1737730867823,0.00044581,105900.0,105890.0,0.448456]
[1737730868029,0.00044581,105900.0,105890.0,0.295456]
[1737730868648,0.00044581,105900.0,105890.0,0.318456]
[1737730870181,0.00044581,105900.0,105890.0,0.56580329]
[1737730871057,0.00044581,105900.0,105890.0,0.55580329]
[1737730871260,0.00044581,105900.0,105890.0,0.448456]
[1737730871480,0.00044581,105900.0,105890.0,0.56580329]
[1737730872091,0.00044581,105900.0,105890.0,0.54580329]
[1737730872317,0.00044581,105900.0,105890.0,0.318456]
[1737730873524,0.00044581,105900.0,105890.0,0.468456]
[1737730874986,0.00044581,105900.0,105890.0,0.448456]
[1737730876610,0.25181496,105900.0,105890.0,0.238156]
[1737730876813,0.0977931,105900.0,105890.0,0.248146]
[1737730877019,0.00044581,105900.0,105890.0,0.248146]
[1737730877220,0.00044581,105900.0,105890.0,0.271146]
[1737730877426,0.00044581,105900.0,105890.0,0.320646]
[1737730878860,0.00044581,105900.0,105890.0,0.41799329]
[1737730879104,0.00044581,105900.0,105890.0,0.56799329]
[1737730879549,0.00044581,105900.0,105890.0,0.470646]
[1737730879746,0.00044581,105900.0,105890.0,0.4707878]
[1737730880283,0.00044581,105900.0,105890.0,0.3232878]
[1737730881081,0.00044581,105900.0,105890.0,0.57063509]
[1737730881356,0.00044581,105900.0,105890.0,0.56063509]
[1737730881643,0.00044581,105900.0,105890.0,0.57063509]
[1737730883214,0.00044581,105900.0,105890.0,0.62333726]
[1737730884341,0.00044581,105900.0,105890.0,0.57063509]
[1737730884623,0.00044581,105900.0,105890.0,0.62333726]
[1737730885033,0.00044581,105900.0,105890.0,0.37763509]
[1737730885241,0.00044581,105900.0,105890.0,0.39763509]
[1737730885417,0.00044581,105900.0,105890.0,0.54763509]
[1737730885653,0.00044581,105900.0,105890.0,0.4302878]
[1737730885854,0.00044581,105900.0,105890.0,0.4732878]
[1737730885986,0.00044581,105900.0,105890.0,0.4532878]
[1737730886203,0.00044581,105900.0,105890.0,0.57063509]
[1737730886705,0.00044581,105900.0,105890.0,0.4302878]
[1737730886903,0.00044581,105900.0,105890.0,0.4502878]
[1737730887106,0.00044581,105900.0,105890.0,0.4302878]
[1737730887326,0.00044581,105900.0,105890.0,0.2802878]
[1737730887503,0.00044581,105900.0,105890.0,0.30812953]
[1737730887711,0.00044581,105900.0,105890.0,0.33112953]
[1737730889817,0.00044581,105900.0,105890.0,0.31112953]
[1737730890015,0.00044581,105900.0,105890.0,0.26162953]
[1737730890290,0.2394361,105900.0,105890.0,0.01048353]
[1737730890727,0.46232245,105900.0,105890.0,0.01048353]
[1737730890940,0.46232245,105900.0,105840.0,0.0001419]
[1737730890941,0.23924986,105880.0,105840.0,0.3408119]
[1737730891173,0.141709,105850.0,105840.0,0.0001419]
[1737730891392,0.62650615,105850.0,105840.0,0.0001419]
[1737730892048,0.24734729,105850.0,105840.0,0.1418649]
[1737730892259,0.23905629,105850.0,105840.0,0.1518649]
[1737730892460,0.09734729,105850.0,105840.0,0.1518649]
[1737730892663,0.09734729,105850.0,105840.0,0.15201239]
[1737730892864,0.47374486,105880.0,105860.0,0.141696]
[1737730893080,0.37912586,105880.0,105870.0,0.141683]
[1737730893276,0.330594,105870.0,105850.0,0.539582]
[1737730893503,0.23904329,105860.0,105840.0,0.42175539]
[1737730893717,0.28628529,105860.0,105840.0,0.23280639]
[1737730893922,0.42799129,105860.0,105850.0,0.141709]
[1737730894123,0.61693029,105860.0,105840.0,0.42175839]
[1737730894345,0.61693029,105860.0,105840.0,0.61071339]
[1737730894554,0.141709,105850.0,105840.0,0.14200639]
[1737730894758,0.09734729,105850.0,105840.0,0.14200639]
[1737730894957,0.09734729,105850.0,105840.0,0.15200639]
[1737730895191,0.47650615,105850.0,105840.0,0.00028939]
[1737730895395,0.47650615,105850.0,105840.0,0.14201239]
[1737730895560,0.47650615,105850.0,105840.0,0.00028939]
[1737730895975,0.65415562,105850.0,105840.0,0.00028939]
[1737730896314,0.62650615,105850.0,105840.0,0.14201239]
[1737730896703,0.62650615,105850.0,105840.0,0.15201239]
[1737730896704,0.09734729,105850.0,105840.0,0.15201239]
[1737730897127,0.330585,105880.0,105860.0,0.151696]
[1737730897357,0.69465678,105870.0,105860.0,0.01]
[1737730897555,0.66539115,105870.0,105850.0,0.529565]
[1737730897696,0.66539115,105870.0,105860.0,0.141696]
[1737730897874,0.47648015,105870.0,105860.0,0.141696]
[1737730898076,0.71263615,105870.0,105840.0,0.41119939]
[1737730898297,0.23744986,105850.0,105840.0,0.19924239]
[1737730898503,0.47650615,105850.0,105840.0,0.00028939]
[1737730898955,0.47650615,105850.0,105840.0,0.14201239]
[1737730899331,0.47650615,105850.0,105840.0,0.17501239]
[1737730899332,0.09734729,105850.0,105840.0,0.17501239]
[1737730899559,0.83654748,105870.0,105860.0,0.141696]
[1737730899560,0.23744986,105870.0,105860.0,0.141696]
[1737730899759,0.47648715,105870.0,105850.0,0.529577]
[1737730900043,0.42797629,105860.0,105850.0,0.141709]
[1737730900508,0.09734729,105860.0,105850.0,0.151709]
[1737730900739,0.09734729,105860.0,105850.0,0.171709]
[1737730900947,0.09734729,105860.0,105850.0,0.151709]
[1737730901372,0.23744986,105870.0,105860.0,0.151696]
[1737730901572,0.09734729,105880.0,105870.0,0.151683]
[1737730901775,0.23901629,105880.0,105870.0,0.151683]
[1737730901980,0.09734729,105880.0,105870.0,0.151683]
[1737730902499,0.09734729,105880.0,105870.0,0.174683]
[1737730902783,0.23774765,105890.0,105880.0,0.141669]
[1737730902940,0.00029779,105890.0,105880.0,0.174669]
[1737730903145,0.00029779,105890.0,105880.0,0.272169]
[1737730904785,0.14195379,105890.0,105880.0,0.164669]
[1737730904990,0.52397394,105890.0,105870.0,0.340584]
[1737730905198,0.66563594,105890.0,105870.0,0.340584]
[1737730905402,0.141669,105880.0,105870.0,0.174683]
[1737730905605,0.71286094,105890.0,105880.0,0.141669]
[1737730905606,0.66563994,105890.0,105880.0,0.141669]
[1737730905834,0.47676094,105890.0,105880.0,0.141669]
[1737730906039,2.16564594,105890.0,105870.0,0.552483]
[1737730906208,2.35453094,105890.0,105870.0,0.552483]
[1737730906439,0.85453094,105890.0,105870.0,0.552483]
[1737730906590,0.33509494,105890.0,105880.0,0.151669]
[1737730906974,0.09764508,105890.0,105880.0,0.174669]
[1737730907166,0.00029779,105890.0,105880.0,0.174669]
[1737730907327,0.00029779,105890.0,105880.0,0.19561338]
[1737730907533,0.00029779,105890.0,105880.0,0.184669]
[1737730907729,0.00029779,105890.0,105880.0,0.194669]
[1737730908759,0.00029779,105890.0,105880.0,0.27671336]
[1737730908962,0.00029779,105890.0,105880.0,0.321969]
[1737730909694,0.00029779,105890.0,105880.0,0.275769]
[1737730910342,0.00029779,105890.0,105880.0,0.52311629]
[1737730910549,0.00029779,105890.0,105880.0,0.56161629]
[1737730910757,0.00029779,105890.0,105880.0,0.304269]
[1737730911162,0.00029779,105890.0,105880.0,0.271269]
[1737730911375,0.00029779,105890.0,105880.0,0.301269]
[1737730911578,0.00029779,105890.0,105880.0,0.304269]
[1737730911785,0.09764508,105890.0,105880.0,0.232769]
[1737730911996,0.00029779,105890.0,105880.0,0.252769]
[1737730912400,0.00029779,105890.0,105880.0,0.232769]
[1737730912827,0.23930108,105890.0,105880.0,0.232769]
[1737730913243,0.09764508,105890.0,105880.0,0.151669]
[1737730913417,0.23930108,105890.0,105880.0,0.141669]
[1737730913669,0.09764508,105890.0,105880.0,0.151669]
[1737730913855,0.23930108,105890.0,105870.0,0.330581]
[1737730914065,0.66562694,105890.0,105880.0,0.0001418]
[1737730915259,0.47675094,105890.0,105880.0,0.1418108]
[1737730915458,0.09764508,105890.0,105880.0,0.1518108]
[1737730915683,0.23930108,105890.0,105880.0,0.0101418]
[1737730915905,1.97675094,105890.0,105880.0,0.0001418]
[1737730916084,0.47675094,105890.0,105880.0,0.1418108]
[1737730916278,0.47675094,105890.0,105880.0,0.0001418]
[1737730916480,0.47675094,105890.0,105880.0,0.1418108]
[1737730916687,0.23930108,105890.0,105880.0,0.1418108]
[1737730916885,0.23930108,105890.0,105880.0,0.3013108]
[1737730917282,0.23930108,105890.0,105880.0,0.1596418]
[1737730917511,0.09764508,105890.0,105880.0,0.3013108]
[1737730918469,0.23930108,105890.0,105880.0,0.1596418]
[1737730918873,0.09734729,105890.0,105880.0,0.3013108]
[1737730919079,0.47568695,105900.0,105880.0,0.3113108]
[1737730919280,0.141656,105890.0,105880.0,0.3113108]
[1737730919530,0.141656,105890.0,105880.0,0.3013108]
[1737730919754,0.23900329,105890.0,105880.0,0.1596418]
[1737730920309,0.62645315,105890.0,105880.0,0.1596418]
[1737730921750,0.23900329,105890.0,105880.0,0.1596418]
[1737730921978,0.54314523,105890.0,105880.0,0.1596418]
[1737730922212,0.5787173,105890.0,105880.0,0.1596418]
[1737730922419,0.54314523,105890.0,105880.0,0.1596418]
[1737730922831,0.54494523,105890.0,105880.0,0.1596418]
[1737730923855,0.74578717,105890.0,105880.0,0.1596418]
[1737730924478,0.59164523,105890.0,105880.0,0.1596418]
[1737730925118,0.76469296,105890.0,105880.0,0.1596418]
[1737730925338,0.61055102,105890.0,105880.0,0.1596418]
[1737730925768,0.56205102,105890.0,105880.0,0.1596418]
[1737730926400,0.71619296,105890.0,105880.0,0.1596418]
[1737730926606,0.56205102,105890.0,105880.0,0.1596418]
[1737730927245,0.71619296,105890.0,105880.0,0.1596418]
[1737730927456,0.71619296,105890.0,105840.0,0.0001419]
[1737730927457,0.15,105880.0,105840.0,0.0001419]
[1737730927675,0.44585094,105850.0,105840.0,0.0001419]
[1737730927882,0.54319823,105850.0,105840.0,0.0001419]
[1737730928099,0.63352099,105850.0,105840.0,0.0001419]
[1737730928315,0.69734017,105850.0,105840.0,0.0001419]
[1737730928738,0.44590494,105810.0,105800.0,0.0001419]
[1737730928946,0.54325223,105810.0,105800.0,0.0001419]
[1737730929152,0.54325223,105810.0,105800.0,0.00028939]
[1737730929372,0.69739417,105810.0,105800.0,0.00028939]
[1737730930025,0.72456954,105810.0,105800.0,0.00028939]
[1737730930241,0.62722225,105810.0,105800.0,0.00028939]
[1737730930663,0.62521862,105810.0,105800.0,0.00028939]
[1737730932128,0.38710666,105810.0,105800.0,0.00028939]
[1737730932761,0.141759,105820.0,105810.0,0.141763]
[1737730932991,0.61712229,105820.0,105800.0,0.14206539]
[1737730933194,0.47536329,105820.0,105800.0,0.14206539]
[1737730933410,0.47536329,105820.0,105800.0,0.34109039]
[1737730933411,0.42810929,105820.0,105800.0,0.34109039]
[1737730933820,0.61711029,105820.0,105800.0,0.34109039]
[1737730934020,0.42810829,105820.0,105800.0,0.53012539]
[1737730934228,0.24734729,105820.0,105810.0,0.141763]
[1737730934430,0.377941,105840.0,105810.0,0.151763]
[1737730934614,0.23908329,105830.0,105820.0,0.188997]
[1737730934844,0.23908329,105830.0,105810.0,0.34077]
[1737730935048,0.42806829,105830.0,105810.0,0.529786]
[1737730935264,0.141733,105840.0,105820.0,0.15175]
[1737730935479,0.09734729,105840.0,105830.0,0.281879]
[1737730935693,0.23907029,105840.0,105830.0,0.0829]
[1737730936107,0.23907029,105840.0,105830.0,0.234636]
[1737730936317,0.23907029,105840.0,105830.0,0.0829]
[1737730937976,0.09734729,105840.0,105830.0,0.234636]
[1737730938174,0.23907029,105840.0,105830.0,0.224636]
[1737730938384,0.23907029,105840.0,105830.0,0.0829]
[1737730938585,0.23907029,105840.0,105830.0,0.224636]
[1737730938586,0.08716036,105840.0,105830.0,0.224636]
[1737730938799,0.08350052,105890.0,105850.0,0.01]
[1737730939002,0.08350052,105890.0,105880.0,0.141669]
[1737730939206,0.08350052,105890.0,105870.0,0.377794]
[1737730939207,0.36972681,105890.0,105870.0,0.198895]
[1737730939418,0.70027981,105890.0,105870.0,0.34057]
[1737730939621,0.08350052,105890.0,105880.0,0.151669]
[1737730939984,0.56891975,105900.0,105880.0,0.340561]
[1737730940192,0.85528464,105900.0,105880.0,0.529444]
[1737730940596,0.85528764,105900.0,105880.0,0.340552]
[1737730941277,0.66641764,105900.0,105880.0,0.340552]
[1737730941614,0.66641764,105900.0,105880.0,0.529433]
[1737730942075,0.141656,105890.0,105880.0,0.141669]
[1737730942282,0.85528764,105900.0,105880.0,0.141669]
[1737730942485,0.85528764,105900.0,105880.0,0.151669]
[1737730942661,0.33590464,105900.0,105880.0,0.529443]
[1737730942895,0.09779268,105900.0,105890.0,0.141656]
[1737730943252,0.00044539,105900.0,105890.0,0.230456]
[1737730943454,0.00044539,105900.0,105890.0,0.300256]
[1737730944891,0.47754764,105900.0,105890.0,0.0788]
[1737730945334,0.62754764,105900.0,105890.0,0.0788]
[1737730945547,0.141656,105890.0,105880.0,0.01]
[1737730945693,1.73900329,105890.0,105880.0,0.01]
[1737730946353,1.59734729,105890.0,105880.0,0.151669]
[1737730946976,0.09734729,105890.0,105880.0,0.151669]
[1737730948260,0.61677129,105890.0,105870.0,0.454477]
[1737730948440,0.61677129,105890.0,105870.0,0.1239]
[1737730948441,0.23901629,105880.0,105870.0,0.1239]
[1737730948663,0.23901629,105880.0,105870.0,0.0789]
[1737730948898,0.141696,105860.0,105850.0,0.147]
[1737730949098,0.188916,105870.0,105850.0,0.147]
[1737730949099,0.519525,105870.0,105850.0,0.268703]
[1737730949301,0.61687629,105870.0,105850.0,0.233707]
[1737730949500,0.141696,105860.0,105850.0,0.092]
[1737730949702,0.61687629,105870.0,105850.0,0.253707]
[1737730949934,0.61687629,105870.0,105850.0,0.233707]
[1737730950139,0.141696,105860.0,105850.0,0.092]
[1737730950347,0.23904329,105860.0,105850.0,0.082]
[1737730950546,0.141723,105840.0,105830.0,0.125]
[1737730950752,0.141723,105840.0,105830.0,0.12514749]
[1737730950753,0.23907029,105840.0,105830.0,0.12514749]
[1737730950961,0.62718225,105840.0,105830.0,0.00014749]
[1737730954878,0.63772122,105840.0,105830.0,0.00014749]
[1737730958550,0.66072122,105840.0,105830.0,4.9e-07]
[1737730958710,0.66072122,105840.0,105810.0,9e-07]
[1737730958711,0.29175,105820.0,105810.0,9e-07]
[1737730958915,0.65020925,105820.0,105810.0,9e-07]
[1737730962637,0.50845925,105820.0,105800.0,8e-07]
[1737730962849,0.67938345,105810.0,105800.0,8e-07]
[1737730963047,0.65022225,105810.0,105800.0,8e-07]
[1737730963257,0.63022225,105810.0,105800.0,8e-07]
[1737730963669,0.16479,105790.0,105780.0,0.0001419]
[1737730963878,0.50024925,105790.0,105780.0,0.00063329]
[1737730964740,0.164803,105780.0,105770.0,0.000142]
[1737730964949,0.51554225,105780.0,105770.0,6.8e-07]
[1737730965292,0.173,105770.0,105760.0,0.0001422]
[1737730965500,0.65027625,105770.0,105760.0,4e-08]
[1737730965742,0.65027625,105770.0,105750.0,0.0001418]
[1737730965743,0.31483,105760.0,105750.0,0.0001418]
[1737730965942,0.31483,105760.0,105740.0,0.0001418]
[1737730965943,0.55295496,105750.0,105740.0,0.0001418]
[1737730966184,0.65030225,105750.0,105740.0,0.0001418]
[1737730966316,0.6797234,105750.0,105740.0,0.0001418]
[1737730966697,0.81145547,105750.0,105740.0,0.0001418]
[1737730967329,0.71410818,105750.0,105740.0,0.0001418]
[1737730967573,0.68468703,105750.0,105740.0,0.0001418]
[1737730967785,0.71410818,105750.0,105740.0,0.0001418]
[1737730969029,0.68468703,105750.0,105740.0,0.0001418]
[1737730969232,0.68468703,105750.0,105740.0,0.0201418]
[1737730969433,0.66889999,105750.0,105740.0,0.0201418]
[1737730969636,0.64589999,105750.0,105740.0,0.0201418]
[1737730969861,0.66089999,105750.0,105740.0,0.0201418]
[1737730970529,0.78124728,105750.0,105740.0,0.0201418]
[1737730970729,0.68389999,105750.0,105740.0,0.0201418]
[1737730971593,0.52998196,105730.0,105720.0,0.0001418]
[1737730971802,0.62732925,105730.0,105720.0,0.0001418]
[1737730973789,0.54387142,105730.0,105720.0,0.0001418]
[1737730974201,2.04387142,105730.0,105720.0,0.0001418]
[1737730974812,2.16421871,105730.0,105720.0,0.0001418]
[1737730975392,0.66421871,105730.0,105720.0,0.0001418]
[1737730975733,0.56687142,105730.0,105720.0,0.0001418]
[1737730976314,0.72152555,105730.0,105720.0,0.0001418]
[1737730976955,0.41221729,105730.0,105720.0,0.0001418]
[1737730978469,0.42247145,105730.0,105720.0,0.0001418]
[1737730979656,0.291897,105710.0,105700.0,0.0001421]
[1737730979867,0.141911,105700.0,105690.0,0.1248417]
[1737730980018,0.23925829,105700.0,105690.0,0.12489092]
[1737730980242,0.26225829,105700.0,105690.0,0.12489092]
[1737730980865,0.29167944,105700.0,105690.0,0.12489092]
[1737730981065,0.57487454,105700.0,105690.0,0.00019092]
[1737730981528,0.57487454,105700.0,105690.0,9.2e-07]
[1737730981913,0.164937,105680.0,105670.0,0.0753421]
[1737730982120,0.41228429,105680.0,105670.0,0.07583501]
[1737730982343,0.52423158,105680.0,105670.0,0.00063501]
[1737730982548,0.42688429,105680.0,105670.0,0.00063501]
[1737730982737,0.314964,105660.0,105650.0,0.0161573]
[1737730982963,0.314964,105660.0,105630.0,0.0001421]
[1737730982964,0.291991,105640.0,105630.0,0.0001421]
[1737730983167,0.41233829,105640.0,105630.0,0.0001421]
[1737730984345,0.41233829,105640.0,105630.0,0.00028988]
[1737730984682,0.4223627,105640.0,105630.0,0.00028988]
[1737730986358,0.44092225,105640.0,105630.0,0.00028988]
[1737730986581,0.023,105630.0,105620.0,0.05]
[1737730986795,0.26235229,105630.0,105620.0,0.05]
[1737730988194,0.41235229,105630.0,105620.0,0.05]
[1737730988791,0.41235229,105630.0,105610.0,0.0001422]
[1737730988792,0.15,105620.0,105610.0,0.0001422]
[1737730988996,0.41236529,105620.0,105610.0,0.00028222]
[1737730990797,0.23936529,105620.0,105610.0,0.00028222]
[1737730990988,0.09734729,105620.0,105610.0,0.15231422]
[1737730991120,0.52066,105640.0,105620.0,0.341363]
[1737730991331,0.09734729,105630.0,105620.0,0.438163]
[1737730991553,0.142,105640.0,105630.0,0.266605]
[1737730991758,0.23934729,105640.0,105630.0,0.1246]
[1737730992741,0.09734729,105640.0,105630.0,0.266605]
[1737730992874,0.141991,105640.0,105630.0,0.1346]
[1737730993289,0.38933829,105640.0,105630.0,0.1246]
[1737730993489,0.44014551,105640.0,105630.0,0.1246]
[1737730993743,0.38933829,105640.0,105630.0,0.1246]
[1737730993878,0.24734729,105640.0,105630.0,0.276605]
[1737730994087,0.291991,105640.0,105630.0,0.276605]
[1737730994289,0.331303,105650.0,105630.0,0.675273]
[1737730994508,0.42865029,105650.0,105640.0,0.01]
[1737730994728,0.42865029,105650.0,105630.0,0.296605]
[1737730994729,1.641991,105640.0,105630.0,0.296605]
[1737730995401,1.641991,105640.0,105630.0,0.1246]
[1737730995577,1.791991,105640.0,105630.0,0.1246]
[1737730995791,0.38933829,105640.0,105630.0,0.1246]
[1737730996046,0.48668558,105640.0,105630.0,0.1246]
[1737730996274,0.48668558,105640.0,105610.0,0.12608222]
[1737730996275,0.142018,105620.0,105610.0,0.12608222]
[1737730996476,0.62822059,105620.0,105610.0,0.12608222]
[1737730997223,0.65122059,105620.0,105610.0,0.00028222]
[1737730997424,0.15,105610.0,105590.0,0.0797]
[1737730997633,0.47824759,105600.0,105590.0,0.0797]
[1737730997840,0.2883645,105590.0,105580.0,0.0461]
[1737730998066,0.38571179,105590.0,105580.0,0.0461]
[1737730998944,0.52087,105600.0,105580.0,0.198172]
[1737730999147,0.142058,105590.0,105580.0,0.0561]
[1737730999352,0.142058,105590.0,105580.0,0.0761]
[1737730999978,0.23940529,105590.0,105580.0,0.0661]
[1737731000197,0.23940529,105590.0,105580.0,0.0761]
[1737731000836,0.15,105610.0,105590.0,0.0823]
[1737731000837,0.670806,105610.0,105590.0,0.0823]
[1737731001030,0.670806,105610.0,105590.0,0.234358]
[1737731001031,0.142045,105600.0,105590.0,0.234358]
[1737731001253,0.23939229,105600.0,105590.0,0.0923]
[1737731001453,0.23939229,105600.0,105590.0,0.0823]
[1737731001673,0.38939229,105600.0,105590.0,0.0823]
[1737731001876,0.38939229,105600.0,105590.0,0.0923]
[1737731002022,0.15,105600.0,105590.0,0.234358]
[1737731002230,0.292045,105600.0,105590.0,0.0923]
[1737731002704,0.38939229,105600.0,105590.0,0.0923]
[1737731002910,0.38939229,105600.0,105590.0,0.0823]
[1737731004351,0.292058,105590.0,105580.0,0.0561]
[1737731004560,0.38940529,105590.0,105580.0,0.0561]
[1737731004764,0.38940529,105590.0,105580.0,0.01]
[1737731006144,0.41240529,105590.0,105580.0,0.01]
[1737731006490,0.65126059,105590.0,105580.0,0.01]
[1737731006910,0.74860788,105590.0,105580.0,0.01]
[1737731007108,0.142099,105560.0,105550.0,0.1255]
[1737731007287,0.38944629,105560.0,105550.0,0.12563995]
[1737731008651,0.62830159,105560.0,105550.0,0.12563995]
[1737731009209,0.38944629,105560.0,105550.0,0.12563995]
[1737731009876,0.5445593,105560.0,105550.0,0.12563995]
[1737731010075,0.38944629,105560.0,105550.0,0.12563995]
[1737731010495,0.142099,105560.0,105550.0,0.13563995]
[1737731010701,0.189453,105570.0,105560.0,0.01]
[1737731010907,0.42889429,105570.0,105560.0,0.01]
[1737731011318,0.42889429,105570.0,105550.0,0.28775195]
[1737731011319,0.142099,105560.0,105550.0,0.15563995]